fUSD/lending_fUSD_20250729
["ID","MTS","AMOUNT","RATE_DAILY","PERIOD"]
[375788321,1753747420028,391.57651322,0.00015631,2]
[375788322,1753747437269,225.0,0.00014,2]
[375788323,1753747438433,221.0,0.0001518,2]
[375788324,1753747438579,505.0,0.0001549,2]
[375788325,1753747457179,296.58,0.00015757,2]
[375788326,1753747461665,332.84003624,0.00015631,2]
[375788327,1753747503276,282.9140308,0.00015631,2]
[375788333,1753747549287,450.0,0.00015631,2]
[375788334,1753747590870,172.97692618,0.00015573,2]
[375788335,1753747636751,158.0,0.000273,120]
[375788336,1753747638137,158.0,0.000273,120]
[375788337,1753747642032,158.0,0.000273,120]
[375788338,1753747642141,158.0,0.000273,120]
[375788339,1753747642587,158.0,0.000273,120]
[375788345,1753747648050,158.0,0.000273,120]
[375788346,1753747650362,158.0,0.000273,120]
[375788347,1753747651328,158.0,0.000273,120]
[375788348,1753747651679,158.0,0.000273,120]
[375788349,1753747668607,158.0,0.000157,2]
[375788350,1753747669198,158.0,0.000157,2]
[375788351,1753747677298,158.0,0.000273,120]
[375788352,1753747678496,158.0,0.000273,120]
[375788353,1753747697263,158.0,0.000273,120]
[375788354,1753747697715,158.0,0.000273,120]
[375788355,1753747699130,158.0,0.000273,120]
[375788356,1753747704391,158.0,0.000273,120]
[375788357,1753747705368,158.0,0.000273,120]
[375788362,1753747770083,505.0,0.00015726,2]
[375788363,1753747783682,1471.54,0.00027397,120]
[375788367,1753747831615,-211.93971334,0.00015871,2]
[375788368,1753747831627,-250.0,0.00015891,2]
[375788369,1753747831638,-300.0,0.00015921,2]
[375788370,1753747831648,-1188.06029166,0.0001595,2]
[375788371,1753747831816,-196.46970834,0.0001595,2]
[375788372,1753747831825,-258.68,0.00015971,2]
[375788373,1753747831836,-300.0,0.00015998,2]
[375788374,1753747831846,-254.0,0.00016133,2]
[375788375,1753747831857,-1200.0,0.00016133,2]
[375788376,1753747831866,-300.0,0.00016133,2]
[375788377,1753747831876,-151.0,0.00016134,2]
[375788378,1753747831885,-151.0,0.00016134,2]
[375788379,1753747831896,-151.0,0.00016134,2]
[375788380,1753747831906,-151.0,0.00016134,2]
[375788381,1753747831916,-151.0,0.00016134,2]
[375788382,1753747831926,-151.0,0.00016134,2]
[375788383,1753747831936,-151.0,0.00016134,2]
[375788384,1753747831946,-151.0,0.00016134,2]
[375788385,1753747831956,-151.0,0.00016134,2]
[375788386,1753747831966,-151.0,0.00016134,2]
[375788387,1753747831976,-151.0,0.00016134,2]
[375788388,1753747831986,-151.0,0.00016134,2]
[375788389,1753747831997,-151.0,0.00016134,2]
[375788390,1753747832008,-151.0,0.00016134,2]
[375788391,1753747832018,-151.0,0.00016134,2]
[375788393,1753747832029,-151.0,0.00016134,2]
[375788395,1753747832039,-151.0,0.00016134,2]
[375788396,1753747832049,-151.0,0.00016134,2]
[375788397,1753747832059,-151.0,0.00016134,2]
[375788398,1753747832069,-151.0,0.00016134,2]
[375788399,1753747832079,-151.0,0.00016134,2]
[375788400,1753747832089,-151.0,0.00016134,2]
[375788401,1753747832099,-151.0,0.00016134,2]
[375788402,1753747832110,-151.0,0.00016134,2]
[375788403,1753747832119,-151.0,0.00016134,2]
[375788404,1753747832129,-151.0,0.00016134,2]
[375788405,1753747832139,-151.0,0.00016134,2]
[375788406,1753747832149,-151.0,0.00016134,2]
[375788407,1753747832158,-151.0,0.00016134,2]
[375788408,1753747832168,-151.0,0.00016134,2]
[375788409,1753747832178,-151.0,0.00016134,2]
[375788410,1753747832188,-151.0,0.00016134,2]
[375788411,1753747832197,-151.0,0.00016134,2]
[375788412,1753747832208,-151.0,0.00016134,2]
[375788413,1753747832218,-151.0,0.00016134,2]
[375788414,1753747832228,-151.0,0.00016134,2]
[375788415,1753747832239,-500.0,0.00016162,2]
[375788416,1753747832250,-945.49,0.00016278,2]
[375788417,1753747832262,-216.0,0.0001637,2]
[375788418,1753747832273,-319.18,0.00016381,2]
[375788419,1753747832284,-1000.0,0.00016418,2]
[375788420,1753747832295,-256.00840174,0.00016422,2]
[375788421,1753747832305,-150.0,0.00016422,2]
[375788422,1753747832315,-150.0,0.00016422,2]
[375788423,1753747832326,-150.0,0.00016422,2]
[375788424,1753747832336,-1396.96,0.00016438,2]
[375788425,1753747832346,-600.0,0.00016438,2]
[375788426,1753747832356,-600.0,0.00016438,2]
[375788427,1753747832366,-600.0,0.00016438,2]
[375788428,1753747832376,-600.0,0.00016438,2]
[375788429,1753747832386,-401.60888979,0.00016469,2]
[375788430,1753747832396,-166.48,0.00016499,2]
[375788431,1753747832406,-154.01,0.00016598,2]
[375788432,1753747832416,-429.66,0.00016598,2]
[375788433,1753747832425,-180.0,0.0001661,7]
[375788434,1753747832435,-154.01,0.00016618,2]
[375788435,1753747832446,-154.01,0.00016639,2]
[375788436,1753747832456,-154.01,0.0001666,2]
[375788437,1753747832466,-154.01,0.00016681,2]
[375788438,1753747832478,-154.01,0.00016701,2]
[375788439,1753747832488,-154.01,0.00016722,2]
[375788440,1753747832498,-429.52,0.00016741,2]
[375788441,1753747832511,-154.01,0.00016743,2]
[375788442,1753747832521,-154.01,0.00016763,2]
[375788443,1753747832531,-600.0,0.00016785,2]
[375788444,1753747832543,-231.76,0.00016785,2]
[375788445,1753747832552,-1300.0,0.000168,6]
[375788446,1753747832561,-231.28369723,0.00016891,2]
[375788447,1753747832572,-2600.0,0.000169,6]
[375788448,1753747832582,-9850.69469112,0.000169,2]
[375788449,1753747832591,-9850.69469094,0.00016969,2]
[375788450,1753747832602,-505.0,0.00016991,3]
[375788451,1753747832611,-9850.69469094,0.00017038,2]
[375788452,1753747832622,-766.30673703,0.00017079,2]
[375788453,1753747832632,-817.24,0.00017096,2]
[375788454,1753747832642,-258.02820501,0.00017106,2]
[375788455,1753747832651,-9850.69469094,0.00017107,2]
[375788456,1753747832660,-500.0,0.00017164,2]
[375788457,1753747832670,-600.0,0.00017164,2]
[375788458,1753747832680,-169.86,0.00017165,2]
[375788459,1753747832690,-278.65,0.00017165,2]
[375788460,1753747832699,-500.0,0.00017173,2]
[375788461,1753747832709,-500.0,0.00017173,2]
[375788462,1753747832719,-500.0,0.00017173,2]
[375788463,1753747832728,-140508.94559715,0.00017175,2]
[375788464,1753747833225,-4899.72158337,0.00017175,2]
[375788465,1753747833238,-20248.09417833,0.00017175,2]
[375788466,1753747833251,-5256.18512587,0.00017175,2]
[375788467,1753747833439,450.0,0.00015554,2]
[375788475,1753747837915,-3129.95770895,0.00017175,2]
[375788584,1753747839495,-400.0,0.00017174,2]
[375788586,1753747839506,-228583.23915842,0.00017175,2]
[375788615,1753747839745,-1070.26161256,0.00017175,2]
[375788617,1753747839757,-35731.86207775,0.00017175,2]
[375788627,1753747839843,-474.2,0.00017174,2]
[375788629,1753747839854,-101408.80590739,0.00017175,2]
[375788631,1753747839866,-15982.09245234,0.00017175,2]
[375788633,1753747839878,-9850.69469094,0.00017176,2]
[375788635,1753747839899,-319.18,0.000172,2]
[375788637,1753747839910,-154.48314578,0.00017214,2]
[375788639,1753747839921,-383.59021542,0.00017221,2]
[375788641,1753747839932,-9850.69469094,0.00017245,2]
[375788643,1753747839943,-150.0,0.00017288,2]
[375788645,1753747839953,-9850.69469094,0.00017314,2]
[375788647,1753747839963,-160.15340356,0.00017331,2]
[375788649,1753747839973,-153.04,0.0001737,2]
[375788651,1753747839984,-330.32,0.0001737,2]
[375788653,1753747839994,-345.09,0.0001737,2]
[375788655,1753747840005,-330.16,0.0001737,2]
[375788657,1753747840021,-300.0,0.0001737,2]
[375788659,1753747840031,-302.87,0.0001737,2]
[375788661,1753747840041,-553.568365,0.0001737,2]
[375788663,1753747840051,-500.0,0.00017373,2]
[375788665,1753747840061,-500.0,0.00017373,2]
[375788667,1753747840071,-500.0,0.00017373,2]
[375788669,1753747840082,-440.78,0.00017382,2]
[375788671,1753747840092,-400.0,0.00017382,2]
[375788673,1753747840102,-547.75,0.00017382,2]
[375788675,1753747840113,-1116.06,0.00017382,2]
[375788678,1753747840123,-606.44,0.00017382,2]
[375788680,1753747840133,-190.15586399,0.00017382,2]
[375788682,1753747840143,-2850.84,0.00017382,2]
[375788684,1753747840153,-593.02,0.00017382,2]
[375788686,1753747840162,-834.45,0.00017382,2]
[375788688,1753747840173,-1505.9,0.00017382,2]
[375788690,1753747840183,-902.41,0.00017382,2]
[375788692,1753747840192,-1676.31,0.00017382,2]
[375788694,1753747840202,-9850.69469094,0.00017383,2]
[375788696,1753747840223,-491.43940473,0.00017398,2]
[375788698,1753747840244,-154.48314578,0.00017402,2]
[375788700,1753747840255,-13220.31830438,0.00017402,2]
[375788702,1753747840267,-383.59,0.00017405,2]
[375788704,1753747840277,-13220.31830438,0.00017407,2]
[375788706,1753747840286,-285.00460059,0.00017414,2]
[375788708,1753747840296,-1716.95087742,0.00017415,2]
[375788710,1753747840306,-2563.3842038,0.0001742,2]
[375788712,1753747840315,-285.00460059,0.00017421,2]
[375788714,1753747840325,-7789.22040892,0.00017422,2]
[375788716,1753747840335,-50458.38086795,0.00017422,2]
[375788718,1753747840345,-4033.06995092,0.00017423,2]
[375788720,1753747840355,-1716.95087742,0.00017423,2]
[375788741,1753747840572,-2510.88424744,0.00017423,2]
[375788743,1753747840583,-1505.84629294,0.00017427,2]
[375788745,1753747840593,-4033.06995092,0.00017427,2]
[375788746,1753747840602,-491.43940473,0.00017428,2]
[375788747,1753747840613,-400.0,0.00017429,2]
[375788748,1753747840622,-400.58,0.00017429,2]
[375788749,1753747840633,-400.0,0.00017429,2]
[375788750,1753747840644,-400.0,0.00017429,2]
[375788751,1753747840654,-544.5,0.00017429,2]
[375788752,1753747840664,-400.0,0.00017429,2]
[375788753,1753747840674,-400.0,0.00017429,2]
[375788754,1753747840684,-2374.77,0.00017429,2]
[375788755,1753747840693,-495.09088524,0.00017429,2]
[375788756,1753747840703,-961.2,0.00017429,2]
[375788757,1753747840713,-663.25,0.00017429,2]
[375788758,1753747840723,-1164.67,0.00017429,2]
[375788759,1753747840732,-1280.67,0.00017429,2]
[375788760,1753747840741,-400.0,0.00017429,2]
[375788761,1753747840751,-497.83,0.00017429,2]
[375788763,1753747840761,-582.07,0.00017429,2]
[375788764,1753747840771,-400.0,0.00017429,2]
[375788766,1753747840781,-400.0,0.00017429,2]
[375788768,1753747840791,-480.71733996,0.00017429,2]
[375788770,1753747840800,-400.0,0.00017429,2]
[375788772,1753747840810,-490.65,0.00017429,2]
[375788774,1753747840819,-506.02153358,0.00017429,2]
[375788776,1753747840829,-400.0,0.00017429,2]
[375788778,1753747840838,-400.0,0.00017429,2]
[375788780,1753747840848,-656.71,0.00017429,2]
[375788782,1753747840857,-1505.84629294,0.00017429,2]
[375788784,1753747840867,-5116.17256985,0.0001743,2]
[375788786,1753747840877,-444.47,0.0001743,2]
[375788788,1753747840886,-400.0,0.0001743,2]
[375788790,1753747840896,-400.0,0.0001743,2]
[375788792,1753747840905,-400.0,0.0001743,2]
[375788794,1753747840914,-288.59174214,0.0001743,2]
[375788796,1753747840924,-400.0,0.0001743,2]
[375788798,1753747840933,-400.0,0.0001743,2]
[375788800,1753747840942,-400.0,0.0001743,2]
[375788802,1753747840953,-400.0,0.0001743,2]
[375788804,1753747840962,-400.0,0.0001743,2]
[375788806,1753747840972,-400.0,0.0001743,2]
[375788808,1753747840981,-400.0,0.0001743,2]
[375788810,1753747840990,-400.0,0.0001743,2]
[375788812,1753747841000,-400.0,0.0001743,2]
[375788814,1753747841009,-400.0,0.0001743,2]
[375788816,1753747841021,-400.0,0.0001743,2]
[375788818,1753747841031,-496.58,0.0001743,2]
[375788820,1753747841040,-400.0,0.0001743,2]
[375788822,1753747841050,-1274.59,0.0001743,2]
[375788824,1753747841060,-400.0,0.0001743,2]
[375788827,1753747841070,-400.0,0.0001743,2]
[375788828,1753747841080,-400.0,0.0001743,2]
[375788830,1753747841090,-402.52772815,0.0001743,2]
[375788833,1753747841100,-400.0,0.0001743,2]
[375788835,1753747841110,-1008.39,0.0001743,2]
[375788837,1753747841121,-400.0,0.0001743,2]
[375788839,1753747841131,-400.0,0.0001743,2]
[375788841,1753747841141,-540.2,0.0001743,2]
[375788843,1753747841151,-400.0,0.0001743,2]
[375788845,1753747841160,-1452.9,0.0001743,2]
[375788847,1753747841169,-1460.86,0.0001743,2]
[375788849,1753747841178,-400.0,0.0001743,2]
[375788851,1753747841188,-400.0,0.0001743,2]
[375788853,1753747841197,-400.0,0.0001743,2]
[375788855,1753747841206,-400.0,0.0001743,2]
[375788857,1753747841216,-400.0,0.0001743,2]
[375788859,1753747841225,-508.04,0.0001743,2]
[375788861,1753747841234,-497.11706007,0.0001743,2]
[375788863,1753747841244,-400.0,0.0001743,2]
[375788865,1753747841254,-400.0,0.0001743,2]
[375788867,1753747841267,-400.0,0.0001743,2]
[375788869,1753747841276,-486.13047464,0.0001743,2]
[375788871,1753747841286,-400.0,0.0001743,2]
[375788873,1753747841295,-400.0,0.0001743,2]
[375788875,1753747841304,-400.0,0.0001743,2]
[375788877,1753747841313,-400.0,0.0001743,2]
[375788879,1753747841323,-180.0,0.0001743,2]
[375788881,1753747841332,-400.0,0.0001743,2]
[375788883,1753747841341,-400.0,0.0001743,2]
[375788885,1753747841350,-400.0,0.0001743,2]
[375788887,1753747841360,-400.0,0.0001743,2]
[375788889,1753747841370,-400.0,0.0001743,2]
[375788891,1753747841379,-400.0,0.0001743,2]
[375788893,1753747841388,-400.0,0.0001743,2]
[375788895,1753747841398,-400.0,0.0001743,2]
[375788897,1753747841408,-400.0,0.0001743,2]
[375788899,1753747841418,-400.0,0.0001743,2]
[375788901,1753747841427,-400.0,0.0001743,2]
[375788903,1753747841436,-530.42,0.0001743,2]
[375788905,1753747841446,-400.0,0.0001743,2]
[375788907,1753747841455,-528.66,0.0001743,2]
[375788909,1753747841465,-400.0,0.0001743,2]
[375788911,1753747841475,-400.0,0.0001743,2]
[375788913,1753747841489,-402.25705777,0.0001743,2]
[375788915,1753747841498,-400.0,0.0001743,2]
[375788917,1753747841508,-562.78,0.0001743,2]
[375788919,1753747841518,-400.0,0.0001743,2]
[375788921,1753747841529,-434.03786465,0.0001743,2]
[375788923,1753747841539,-400.0,0.0001743,2]
[375788925,1753747841549,-400.0,0.0001743,2]
[375788927,1753747841559,-400.0,0.0001743,2]
[375788929,1753747841568,-400.0,0.0001743,2]
[375788931,1753747841577,-400.0,0.0001743,2]
[375788933,1753747841587,-400.0,0.0001743,2]
[375788935,1753747841596,-400.0,0.0001743,2]
[375788937,1753747841606,-400.0,0.0001743,2]
[375788939,1753747841615,-400.0,0.0001743,2]
[375788941,1753747841624,-400.0,0.0001743,2]
[375788943,1753747841634,-400.0,0.0001743,2]
[375788945,1753747841643,-690.845693,0.0001743,2]
[375788947,1753747841653,-151.0564468,0.0001743,2]
[375788949,1753747841663,-158.205036,0.0001743,2]
[375788951,1753747841672,-400.0,0.0001743,2]
[375788953,1753747841683,-1082.418864,0.0001743,2]
[375788955,1753747841693,-400.0,0.0001743,2]
[375788957,1753747841702,-400.0,0.0001743,2]
[375788959,1753747841712,-951.559437,0.0001743,2]
[375788961,1753747841722,-400.0,0.0001743,2]
[375788963,1753747841731,-636.17,0.0001743,2]
[375788965,1753747841741,-400.0,0.0001743,2]
[375788967,1753747841751,-492.49962729,0.0001743,2]
[375788969,1753747841761,-400.0,0.0001743,2]
[375788971,1753747841772,-400.0,0.0001743,2]
[375788973,1753747841781,-400.0,0.0001743,2]
[375788975,1753747841790,-400.0,0.0001743,2]
[375788977,1753747841800,-400.0,0.0001743,2]
[375788979,1753747841809,-400.0,0.0001743,2]
[375788981,1753747841819,-652.51,0.0001743,2]
[375788983,1753747841829,-400.0,0.0001743,2]
[375788985,1753747841839,-521.33062587,0.0001743,2]
[375788987,1753747841849,-400.0,0.0001743,2]
[375788989,1753747841859,-400.0,0.0001743,2]
[375788991,1753747841868,-400.0,0.0001743,2]
[375788993,1753747841878,-400.0,0.0001743,2]
[375788995,1753747841887,-400.0,0.0001743,2]
[375788997,1753747841897,-400.0,0.0001743,2]
[375788999,1753747841906,-532.84,0.0001743,2]
[375789001,1753747841916,-400.0,0.0001743,2]
[375789003,1753747841925,-491.35,0.0001743,2]
[375789005,1753747841934,-400.0,0.0001743,2]
[375789007,1753747841944,-400.0,0.0001743,2]
[375789009,1753747841954,-400.0,0.0001743,2]
[375789011,1753747841963,-487.21,0.0001743,2]
[375789013,1753747841973,-400.0,0.0001743,2]
[375789015,1753747841983,-400.0,0.0001743,2]
[375789017,1753747841992,-535.53100158,0.0001743,2]
[375789019,1753747842002,-400.0,0.0001743,2]
[375789021,1753747842012,-553.78,0.0001743,2]
[375789023,1753747842022,-400.0,0.0001743,2]
[375789025,1753747842032,-400.0,0.0001743,2]
[375789027,1753747842041,-400.0,0.0001743,2]
[375789029,1753747842051,-400.0,0.0001743,2]
[375789031,1753747842060,-476.18826298,0.0001743,2]
[375789033,1753747842070,-400.0,0.0001743,2]
[375789035,1753747842079,-400.0,0.0001743,2]
[375789037,1753747842089,-400.0,0.0001743,2]
[375789039,1753747842099,-217.26567139,0.0001743,2]
[375789041,1753747842108,-400.0,0.0001743,2]
[375789043,1753747842118,-584.33,0.0001743,2]
[375789045,1753747842128,-400.0,0.0001743,2]
[375789047,1753747842137,-400.0,0.0001743,2]
[375789049,1753747842147,-400.0,0.0001743,2]
[375789051,1753747842157,-400.0,0.0001743,2]
[375789053,1753747842167,-400.0,0.0001743,2]
[375789055,1753747842176,-400.0,0.0001743,2]
[375789057,1753747842186,-400.0,0.0001743,2]
[375789059,1753747842195,-400.0,0.0001743,2]
[375789061,1753747842205,-5115.91,0.0001743,2]
[375789063,1753747842215,-400.0,0.0001743,2]
[375789065,1753747842225,-400.0,0.0001743,2]
[375789067,1753747842235,-400.0,0.0001743,2]
[375789069,1753747842245,-400.0,0.0001743,2]
[375789071,1753747842255,-400.0,0.0001743,2]
[375789073,1753747842266,-400.0,0.0001743,2]
[375789076,1753747842276,-400.0,0.0001743,2]
[375789078,1753747842285,-400.0,0.0001743,2]
[375789080,1753747842295,-450.94,0.0001743,2]
[375789082,1753747842305,-400.0,0.0001743,2]
[375789084,1753747842314,-538.43,0.0001743,2]
[375789087,1753747842324,-400.0,0.0001743,2]
[375789089,1753747842334,-400.0,0.0001743,2]
[375789092,1753747842343,-400.0,0.0001743,2]
[375789094,1753747842353,-400.0,0.0001743,2]
[375789096,1753747842362,-400.0,0.0001743,2]
[375789098,1753747842372,-400.0,0.0001743,2]
[375789099,1753747842381,-400.0,0.0001743,2]
[375789101,1753747842391,-400.0,0.0001743,2]
[375789104,1753747842401,-400.0,0.0001743,2]
[375789106,1753747842410,-400.0,0.0001743,2]
[375789108,1753747842420,-442.5,0.0001743,2]
[375789110,1753747842429,-400.0,0.0001743,2]
[375789112,1753747842439,-402.96,0.0001743,2]
[375789114,1753747842448,-400.0,0.0001743,2]
[375789116,1753747842458,-291.28999841,0.0001743,2]
[375789118,1753747842468,-400.0,0.0001743,2]
[375789120,1753747842479,-400.0,0.0001743,2]
[375789122,1753747842491,-400.0,0.0001743,2]
[375789124,1753747842501,-400.0,0.0001743,2]
[375789126,1753747842510,-400.0,0.0001743,2]
[375789128,1753747842523,-400.0,0.0001743,2]
[375789130,1753747842533,-400.0,0.0001743,2]
[375789132,1753747842544,-457.78,0.0001743,2]
[375789134,1753747842554,-400.0,0.0001743,2]
[375789136,1753747842565,-673.94,0.0001743,2]
[375789138,1753747842574,-400.0,0.0001743,2]
[375789140,1753747842584,-400.0,0.0001743,2]
[375789143,1753747842594,-496.8,0.0001743,2]
[375789145,1753747842604,-400.0,0.0001743,2]
[375789147,1753747842614,-400.0,0.0001743,2]
[375789149,1753747842623,-400.0,0.0001743,2]
[375789151,1753747842633,-400.0,0.0001743,2]
[375789153,1753747842642,-400.0,0.0001743,2]
[375789155,1753747842652,-400.0,0.0001743,2]
[375789157,1753747842661,-1237.66,0.0001743,2]
[375789159,1753747842671,-400.0,0.0001743,2]
[375789161,1753747842680,-400.0,0.0001743,2]
[375789163,1753747842691,-233.49031698,0.0001743,2]
[375789165,1753747842701,-400.0,0.0001743,2]
[375789167,1753747842710,-400.0,0.0001743,2]
[375789169,1753747842720,-400.0,0.0001743,2]
[375789171,1753747842729,-400.0,0.0001743,2]
[375789173,1753747842739,-400.0,0.0001743,2]
[375789175,1753747842748,-400.0,0.0001743,2]
[375789177,1753747842758,-400.0,0.0001743,2]
[375789204,1753747843012,-400.0,0.0001743,2]
[375789207,1753747843026,-400.0,0.0001743,2]
[375789209,1753747843037,-400.0,0.0001743,2]
[375789211,1753747843049,-400.0,0.0001743,2]
[375789213,1753747843059,-616.98,0.0001743,2]
[375789215,1753747843068,-611.34,0.0001743,2]
[375789217,1753747843078,-405.46,0.0001743,2]
[375789219,1753747843087,-400.0,0.0001743,2]
[375789221,1753747843097,-400.0,0.0001743,2]
[375789223,1753747843107,-500.0,0.0001743,2]
[375789225,1753747843117,-400.0,0.0001743,2]
[375789227,1753747843127,-400.0,0.0001743,2]
[375789229,1753747843137,-400.0,0.0001743,2]
[375789231,1753747843148,-400.0,0.0001743,2]
[375789233,1753747843158,-400.0,0.0001743,2]
[375789236,1753747843169,-400.0,0.0001743,2]
[375789239,1753747843179,-400.0,0.0001743,2]
[375789242,1753747843190,-400.0,0.0001743,2]
[375789244,1753747843200,-400.0,0.0001743,2]
[375789246,1753747843211,-400.0,0.0001743,2]
[375789248,1753747843220,-506.78,0.0001743,2]
[375789250,1753747843229,-400.0,0.0001743,2]
[375789252,1753747843239,-400.0,0.0001743,2]
[375789254,1753747843251,-471.14,0.0001743,2]
[375789256,1753747843261,-400.0,0.0001743,2]
[375789258,1753747843274,-400.0,0.0001743,2]
[375789260,1753747843284,-400.0,0.0001743,2]
[375789262,1753747843293,-400.0,0.0001743,2]
[375789264,1753747843303,-400.0,0.0001743,2]
[375789266,1753747843313,-400.0,0.0001743,2]
[375789268,1753747843323,-400.0,0.0001743,2]
[375789270,1753747843333,-306.02842526,0.0001743,2]
[375789272,1753747843342,-400.0,0.0001743,2]
[375789275,1753747843352,-400.0,0.0001743,2]
[375789277,1753747843362,-485.46,0.0001743,2]
[375789279,1753747843372,-400.0,0.0001743,2]
[375789281,1753747843381,-507.44,0.0001743,2]
[375789282,1753747843391,-400.0,0.0001743,2]
[375789284,1753747843401,-291.2289273,0.0001743,2]
[375789287,1753747843411,-400.0,0.0001743,2]
[375789289,1753747843420,-400.0,0.0001743,2]
[375789291,1753747843431,-400.0,0.0001743,2]
[375789293,1753747843441,-400.0,0.0001743,2]
[375789295,1753747843451,-610.85,0.0001743,2]
[375789297,1753747843460,-400.0,0.0001743,2]
[375789299,1753747843471,-400.0,0.0001743,2]
[375789301,1753747843482,-400.0,0.0001743,2]
[375789303,1753747843493,-400.0,0.0001743,2]
[375789305,1753747843503,-400.0,0.0001743,2]
[375789307,1753747843512,-400.0,0.0001743,2]
[375789309,1753747843526,-1387.69,0.0001743,2]
[375789311,1753747843535,-400.0,0.0001743,2]
[375789312,1753747843545,-400.0,0.0001743,2]
[375789315,1753747843556,-400.0,0.0001743,2]
[375789317,1753747843565,-400.0,0.0001743,2]
[375789318,1753747843575,-383.98801974,0.0001743,2]
[375789320,1753747843584,-400.0,0.0001743,2]
[375789323,1753747843595,-400.0,0.0001743,2]
[375789325,1753747843605,-400.0,0.0001743,2]
[375789327,1753747843614,-400.0,0.0001743,2]
[375789329,1753747843624,-400.0,0.0001743,2]
[375789331,1753747843633,-400.0,0.0001743,2]
[375789333,1753747843643,-425.94,0.0001743,2]
[375789335,1753747843653,-400.0,0.0001743,2]
[375789337,1753747843663,-400.0,0.0001743,2]
[375789339,1753747843672,-400.0,0.0001743,2]
[375789341,1753747843682,-400.0,0.0001743,2]
[375789343,1753747843691,-400.0,0.0001743,2]
[375789345,1753747843700,-400.0,0.0001743,2]
[375789347,1753747843710,-400.0,0.0001743,2]
[375789349,1753747843720,-400.0,0.0001743,2]
[375789351,1753747843729,-4264.69,0.0001743,2]
[375789353,1753747843739,-400.0,0.0001743,2]
[375789355,1753747843748,-350.0,0.0001743,2]
[375789356,1753747843758,-400.0,0.0001743,2]
[375789359,1753747843769,-987.36,0.0001743,2]
[375789361,1753747843778,-484.46151347,0.0001743,2]
[375789363,1753747843788,-400.0,0.0001743,2]
[375789365,1753747843798,-400.0,0.0001743,2]
[375789367,1753747843808,-400.0,0.0001743,2]
[375789369,1753747843818,-400.0,0.0001743,2]
[375789371,1753747843827,-400.0,0.0001743,2]
[375789373,1753747843837,-400.0,0.0001743,2]
[375789375,1753747843846,-632.36,0.0001743,2]
[375789377,1753747843858,-400.0,0.0001743,2]
[375789379,1753747843868,-400.0,0.0001743,2]
[375789381,1753747843878,-400.0,0.0001743,2]
[375789383,1753747843888,-400.0,0.0001743,2]
[375789385,1753747843897,-500.0,0.0001743,2]
[375789387,1753747843907,-314.00607112,0.0001743,2]
[375789389,1753747843916,-400.0,0.0001743,2]
[375789391,1753747843926,-400.0,0.0001743,2]
[375789393,1753747843935,-458.71,0.0001743,2]
[375789395,1753747843945,-400.0,0.0001743,2]
[375789397,1753747843956,-490.69,0.0001743,2]